fUSD/lending_fUSD_20250116
["ID","MTS","AMOUNT","RATE_DAILY","PERIOD"]
[349161451,1736999443858,-500.0,0.00043497,18]
[349161452,1736999443868,-500.0,0.00043497,18]
[349161453,1736999443877,-500.0,0.00043497,18]
[349161454,1736999443886,-500.0,0.00043497,18]
[349161455,1736999443896,-411.65730734,0.00043497,18]
[349161456,1736999443906,-500.0,0.00043497,18]
[349161457,1736999443915,-500.0,0.00043497,18]
[349161458,1736999443925,-500.0,0.00043497,18]
[349161459,1736999443935,-500.0,0.00043497,18]
[349161460,1736999443945,-500.0,0.00043497,18]
[349161461,1736999443954,-500.0,0.00043497,18]
[349161462,1736999443964,-209.61999717,0.00043497,18]
[349161463,1736999443974,-525.84560385,0.00043497,18]
[349161464,1736999443985,-500.0,0.00043497,18]
[349161465,1736999443994,-500.0,0.00043497,18]
[349161466,1736999444006,-500.0,0.00043497,18]
[349161467,1736999444015,-469.05575901,0.00043497,18]
[349161468,1736999444025,-455.35627892,0.00043497,18]
[349161469,1736999444034,-500.0,0.00043497,18]
[349161471,1736999444044,-500.0,0.00043497,18]
[349161473,1736999444053,-790.66,0.00043497,18]
[349161475,1736999444063,-606.95,0.00043497,45]
[349161477,1736999444073,-606.95,0.00043497,45]
[349161479,1736999444083,-500.0,0.00043497,18]
[349161481,1736999444092,-500.0,0.00043497,18]
[349161482,1736999444102,-775.19,0.00043497,18]
[349161483,1736999444111,-500.0,0.00043497,18]
[349161484,1736999444120,-500.0,0.00043497,18]
[349161485,1736999444130,-500.0,0.00043497,18]
[349161486,1736999444139,-517.02,0.00043497,18]
[349161487,1736999444149,-500.0,0.00043497,18]
[349161488,1736999444158,-500.0,0.00043497,18]
[349161489,1736999444168,-583.01,0.00043497,18]
[349161490,1736999444177,-500.0,0.00043497,25]
[349161491,1736999444187,-500.0,0.00043497,25]
[349161492,1736999444196,-500.0,0.00043497,25]
[349161493,1736999444208,-500.0,0.00043497,25]
[349161494,1736999444218,-500.0,0.00043497,25]
[349161495,1736999444227,-500.0,0.00043497,25]
[349161496,1736999444236,-500.0,0.00043497,25]
[349161497,1736999444247,-273.4904278,0.00043497,25]
[349161498,1736999444257,-699.34,0.00043497,25]
[349161499,1736999444266,-500.0,0.00043497,25]
[349161500,1736999444276,-297.99193022,0.00043497,25]
[349161501,1736999444286,-688.26,0.00043497,25]
[349161502,1736999444296,-214.96521387,0.00043497,25]
[349161503,1736999444305,-35405.54170442,0.00043498,37]
[349161504,1736999444315,-202901.91537845,0.00043498,30]
[349161505,1736999444324,-32062.37951402,0.00043498,30]
[349161506,1736999444333,-601.44320472,0.00043498,18]
[349161507,1736999444343,-500.0,0.00043498,18]
[349161508,1736999444352,-500.0,0.00043498,18]
[349161509,1736999444362,-500.0,0.00043498,18]
[349161510,1736999444372,-938.17,0.00043498,18]
[349161511,1736999444381,-361.97625996,0.00043498,18]
[349161512,1736999444391,-1679.02,0.00043498,18]
[349161513,1736999444399,-1679.02,0.00043498,18]
[349161514,1736999444409,-500.0,0.00043498,18]
[349161515,1736999444418,-611.76,0.00043498,18]
[349161516,1736999444427,-997.41,0.00043498,18]
[349161517,1736999444436,-611.76,0.00043498,18]
[349161518,1736999444446,-997.41,0.00043498,18]
[349161519,1736999444455,-500.0,0.00043498,18]
[349161520,1736999444465,-500.0,0.00043498,18]
[349161521,1736999444474,-2077.34,0.00043498,18]
[349161522,1736999444484,-2077.34,0.00043498,18]
[349161523,1736999444493,-1036.79,0.00043498,18]
[349161524,1736999444503,-1036.79,0.00043498,18]
[349161525,1736999444513,-780.33,0.00043498,18]
[349161526,1736999444522,-780.33,0.00043498,18]
[349161527,1736999444532,-721.05,0.00043498,18]
[349161528,1736999444541,-591.22,0.00043498,18]
[349161529,1736999444551,-827.69,0.00043498,18]
[349161530,1736999444560,-591.22,0.00043498,18]
[349161531,1736999444569,-827.69,0.00043498,18]
[349161532,1736999444579,-500.0,0.00043498,18]
[349161533,1736999444588,-536.81854637,0.00043498,18]
[349161534,1736999444598,-4571.0,0.00043498,18]
[349161535,1736999444607,-4571.0,0.00043498,18]
[349161536,1736999444617,-1632.57,0.00043498,18]
[349161537,1736999444626,-1632.57,0.00043498,18]
[349161538,1736999444637,-1126.09,0.00043498,18]
[349161539,1736999444647,-1126.09,0.00043498,18]
[349161540,1736999444656,-1479.37,0.00043498,18]
[349161541,1736999444666,-2513.2,0.00043498,18]
[349161542,1736999444675,-2513.2,0.00043498,18]
[349161543,1736999444684,-2404.96,0.00043498,18]
[349161544,1736999444694,-2404.96,0.00043498,18]
[349161545,1736999444704,-578.95,0.00043498,18]
[349161546,1736999444713,-578.95,0.00043498,18]
[349161547,1736999444723,-814.97,0.00043498,18]
[349161548,1736999444732,-543.85,0.00043498,18]
[349161549,1736999444741,-543.85,0.00043498,18]
[349161550,1736999444751,-1203.92,0.00043498,18]
[349161551,1736999444760,-1203.92,0.00043498,18]
[349161552,1736999444769,-1100.96,0.00043498,18]
[349161553,1736999444779,-1100.96,0.00043498,18]
[349161554,1736999444788,-783.95,0.00043498,18]
[349161555,1736999444798,-783.95,0.00043498,18]
[349161556,1736999444807,-923.56,0.00043498,18]
[349161557,1736999444816,-923.56,0.00043498,18]
[349161558,1736999444825,-1847.38,0.00043498,18]
[349161559,1736999444834,-1176.07,0.00043498,18]
[349161560,1736999444843,-1176.07,0.00043498,18]
[349161561,1736999444853,-500.0,0.00043498,18]
[349161562,1736999444862,-500.0,0.00043498,18]
[349161563,1736999444871,-2728.3,0.00043498,18]
[349161564,1736999444881,-2728.3,0.00043498,18]
[349161565,1736999444891,-591.68,0.00043498,18]
[349161566,1736999444900,-1799.19,0.00043498,18]
[349161567,1736999444909,-1799.19,0.00043498,18]
[349161568,1736999444919,-2487.26,0.00043498,18]
[349161569,1736999444928,-2487.26,0.00043498,18]
[349161570,1736999444937,-787.31,0.00043498,18]
[349161571,1736999444946,-787.31,0.00043498,18]
[349161572,1736999444956,-500.0,0.00043498,18]
[349161573,1736999444966,-226.21708707,0.00043498,18]
[349161574,1736999444975,-500.0,0.00043498,18]
[349161575,1736999444984,-500.0,0.00043498,18]
[349161576,1736999444993,-984.76,0.00043498,18]
[349161577,1736999445003,-984.76,0.00043498,18]
[349161578,1736999445012,-500.0,0.00043498,18]
[349161579,1736999445021,-512.3,0.00043498,18]
[349161580,1736999445030,-702.19,0.00043498,18]
[349161581,1736999445039,-500.0,0.00043498,18]
[349161582,1736999445049,-500.0,0.00043498,18]
[349161583,1736999445058,-500.0,0.00043498,18]
[349161584,1736999445067,-447.62167411,0.00043498,18]
[349161585,1736999445077,-500.0,0.00043498,18]
[349161586,1736999445086,-500.0,0.00043498,18]
[349161587,1736999445095,-500.0,0.00043498,18]
[349161588,1736999445104,-500.0,0.00043498,18]
[349161589,1736999445114,-228.10009897,0.00043498,18]
[349161590,1736999445123,-500.0,0.00043498,18]
[349161591,1736999445132,-500.0,0.00043498,60]
[349161592,1736999445141,-790.66,0.00043498,18]
[349161593,1736999445151,-790.66,0.00043498,18]
[349161594,1736999445160,-606.95,0.00043498,45]
[349161595,1736999445169,-210.43194257,0.00043498,18]
[349161596,1736999445178,-500.0,0.00043498,18]
[349161597,1736999445187,-500.0,0.00043498,18]
[349161598,1736999445196,-775.19,0.00043498,18]
[349161599,1736999445207,-775.19,0.00043498,18]
[349161600,1736999445218,-500.0,0.00043498,18]
[349161601,1736999445227,-500.0,0.00043498,18]
[349161602,1736999445237,-500.0,0.00043498,18]
[349161603,1736999445248,-500.0,0.00043498,18]
[349161604,1736999445260,-500.0,0.00043498,18]
[349161605,1736999445270,-500.0,0.00043498,18]
[349161606,1736999445279,-517.02,0.00043498,18]
[349161607,1736999445291,-517.02,0.00043498,18]
[349161608,1736999445300,-500.0,0.00043498,18]
[349161609,1736999445310,-500.0,0.00043498,18]
[349161610,1736999445319,-500.0,0.00043498,18]
[349161611,1736999445329,-500.0,0.00043498,18]
[349161612,1736999445338,-583.01,0.00043498,18]
[349161613,1736999445347,-583.01,0.00043498,18]
[349161614,1736999445356,-500.0,0.00043498,25]
[349161615,1736999445365,-500.0,0.00043498,25]
[349161616,1736999445375,-500.0,0.00043498,25]
[349161617,1736999445384,-500.0,0.00043498,25]
[349161618,1736999445393,-500.0,0.00043498,25]
[349161619,1736999445402,-500.0,0.00043498,25]
[349161620,1736999445411,-500.0,0.00043498,25]
[349161621,1736999445420,-500.0,0.00043498,25]
[349161622,1736999445430,-500.0,0.00043498,25]
[349161623,1736999445439,-500.0,0.00043498,25]
[349161624,1736999445448,-500.0,0.00043498,25]
[349161625,1736999445458,-500.0,0.00043498,25]
[349161626,1736999445467,-500.0,0.00043498,25]
[349161627,1736999445476,-500.0,0.00043498,25]
[349161628,1736999445486,-1000.0,0.00043498,120]
[349161629,1736999445495,-699.34,0.00043498,25]
[349161630,1736999445506,-699.34,0.00043498,25]
[349161631,1736999445515,-500.0,0.00043498,25]
[349161632,1736999445524,-500.0,0.00043498,25]
[349161633,1736999445534,-688.26,0.00043498,25]
[349161634,1736999445543,-1123.0,0.00043499,7]
[349161635,1736999445553,-2005.505,0.00043499,2]
[349161636,1736999445562,-500.0,0.00043499,18]
[349161637,1736999445571,-500.0,0.00043499,18]
[349161638,1736999445581,-500.0,0.00043499,18]
[349161639,1736999445590,-501.74606963,0.00043499,18]
[349161640,1736999445599,-500.0,0.00043499,18]
[349161641,1736999445608,-500.0,0.00043499,18]
[349161642,1736999445618,-500.0,0.00043499,18]
[349161643,1736999445627,-383.1829861,0.00043499,18]
[349161644,1736999445637,-500.0,0.00043499,18]
[349161645,1736999445646,-500.0,0.00043499,18]
[349161646,1736999445656,-488.98793553,0.00043499,18]
[349161647,1736999445665,-1728.55,0.00043499,18]
[349161648,1736999445675,-1728.55,0.00043499,18]
[349161649,1736999445684,-1728.55,0.00043499,18]
[349161650,1736999445694,-1728.55,0.00043499,18]
[349161651,1736999445703,-1728.55,0.00043499,18]
[349161652,1736999445713,-1728.55,0.00043499,18]
[349161653,1736999445723,-1728.55,0.00043499,18]
[349161654,1736999445733,-1728.55,0.00043499,18]
[349161655,1736999445743,-1728.61764444,0.00043499,18]
[349161656,1736999445753,-938.17,0.00043499,18]
[349161657,1736999445763,-938.17,0.00043499,18]
[349161658,1736999445773,-938.17,0.00043499,18]
[349161659,1736999445782,-938.17,0.00043499,18]
[349161660,1736999445792,-938.17,0.00043499,18]
[349161661,1736999445801,-938.33666273,0.00043499,18]
[349161662,1736999445811,-1679.02,0.00043499,18]
[349161663,1736999445820,-1679.02,0.00043499,18]
[349161664,1736999445829,-1679.02,0.00043499,18]
[349161665,1736999445839,-1679.02,0.00043499,18]
[349161666,1736999445848,-1679.23438484,0.00043499,18]
[349161667,1736999445857,-500.0,0.00043499,18]
[349161668,1736999445866,-500.0,0.00043499,18]
[349161669,1736999445876,-500.0,0.00043499,18]
[349161670,1736999445885,-500.0,0.00043499,18]
[349161671,1736999445895,-202.25630339,0.00043499,18]
[349161672,1736999445905,-611.76,0.00043499,18]
[349161673,1736999445914,-997.41,0.00043499,18]
[349161674,1736999445923,-611.76,0.00043499,18]
[349161675,1736999445932,-997.41,0.00043499,18]
[349161676,1736999445941,-997.41,0.00043499,18]
[349161677,1736999445950,-611.76,0.00043499,18]
[349161678,1736999445959,-997.41,0.00043499,18]
[349161679,1736999445968,-611.76,0.00043499,18]
[349161680,1736999445977,-611.87930854,0.00043499,18]
[349161681,1736999445986,-997.49348279,0.00043499,18]
[349161682,1736999445997,-500.0,0.00043499,18]
[349161683,1736999446007,-500.0,0.00043499,18]
[349161684,1736999446017,-500.0,0.00043499,18]
[349161685,1736999446026,-500.0,0.00043499,18]
[349161686,1736999446035,-500.0,0.00043499,18]
[349161687,1736999446044,-340.67215874,0.00043499,18]
[349161688,1736999446054,-500.0,0.00043499,18]
[349161689,1736999446063,-500.0,0.00043499,18]
[349161690,1736999446072,-528.39313778,0.00043499,18]
[349161691,1736999446082,-2077.34,0.00043499,18]
[349161692,1736999446091,-2077.34,0.00043499,18]
[349161693,1736999446100,-686.58732918,0.00043499,18]
[349161694,1736999446179,-1390.75267082,0.00043499,18]
[349161695,1736999446188,-2077.34,0.00043499,18]
[349161696,1736999446198,-2077.38104214,0.00043499,18]
[349161697,1736999446210,-1036.79,0.00043499,18]
[349161698,1736999446219,-1036.79,0.00043499,18]
[349161699,1736999446228,-1036.79,0.00043499,18]
[349161700,1736999446238,-1036.79,0.00043499,18]
[349161702,1736999446247,-1036.82773298,0.00043499,18]
[349161703,1736999446258,-780.33,0.00043499,18]
[349161704,1736999446268,-780.33,0.00043499,18]
[349161705,1736999446279,-780.33,0.00043499,18]
[349161706,1736999446403,-721.05,0.00043499,18]
[349161707,1736999446414,-780.33,0.00043499,18]
[349161708,1736999446424,-721.05,0.00043499,18]
[349161709,1736999446434,-780.41559521,0.00043499,18]
[349161710,1736999446443,-721.05,0.00043499,18]
[349161711,1736999446454,-721.05,0.00043499,18]
[349161712,1736999446463,-721.05,0.00043499,18]
[349161713,1736999446474,-721.28355971,0.00043499,18]
[349161714,1736999446484,-591.22,0.00043499,18]
[349161715,1736999446494,-827.69,0.00043499,18]
[349161716,1736999446505,-591.22,0.00043499,18]
[349161717,1736999446515,-591.22,0.00043499,18]
[349161718,1736999446526,-827.69,0.00043499,18]
[349161719,1736999446536,-827.69,0.00043499,18]
[349161720,1736999446546,-591.22,0.00043499,18]
[349161721,1736999446555,-827.69,0.00043499,18]
[349161722,1736999446565,-591.22602466,0.00043499,18]
[349161723,1736999446574,-827.75289849,0.00043499,18]
[349161724,1736999446583,-4571.0,0.00043499,18]
[349161725,1736999446592,-4571.0,0.00043499,18]
[349161726,1736999446602,-4571.0,0.00043499,18]
[349161727,1736999446611,-4571.0,0.00043499,18]
[349161728,1736999446621,-1632.57,0.00043499,18]
[349161729,1736999446630,-4571.0,0.00043499,18]
[349161730,1736999446639,-1632.57,0.00043499,18]
[349161731,1736999446648,-1905.56168339,0.00043499,18]
[349161732,1736999446661,-2665.46388544,0.00043499,18]
[349161733,1736999446671,-1632.57,0.00043499,18]
[349161734,1736999446680,-1632.57,0.00043499,18]
[349161735,1736999446690,-1632.7442155,0.00043499,18]
[349161736,1736999446699,-1126.09,0.00043499,18]
[349161737,1736999446708,-1126.09,0.00043499,18]
[349161738,1736999446717,-1126.09,0.00043499,18]
[349161739,1736999446727,-1126.09,0.00043499,18]
[349161740,1736999446736,-1126.14181757,0.00043499,18]
[349161741,1736999446745,-623.95763017,0.00043499,18]
[349161742,1736999446758,-622.7692827,0.00043499,18]
[349161743,1736999446832,-256.99959795,0.000429,9]
[349161744,1736999446841,-79.44040205,0.00043141,9]
[349161745,1736999446852,-177.5591957,0.00043141,9]
[349161746,1736999446862,-256.99959775,0.00043383,9]
[349161747,1736999446871,-57.04770655,0.00043497,25]
[349161748,1736999446890,-442.95229345,0.00043497,25]
[349161749,1736999446899,-688.26,0.00043498,25]
[349161750,1736999446908,-500.0,0.00043498,25]
[349161751,1736999446917,-500.0,0.00043498,25]
[349161752,1736999446926,-232.64308713,0.00043499,18]
[349161753,1736999446935,-1479.37,0.00043499,18]
[349161754,1736999446944,-1479.37,0.00043499,18]
[349161755,1736999446954,-1479.37,0.00043499,18]
[349161756,1736999446963,-1479.37,0.00043499,18]
[349161757,1736999446972,-1479.44416541,0.00043499,18]
[349161758,1736999446981,-2513.2,0.00043499,18]
[349161759,1736999446990,-2513.2,0.00043499,18]
[349161760,1736999447001,-2513.2,0.00043499,18]
[349161761,1736999447011,-1560.35964976,0.00043499,18]
[349161762,1736999447022,-744.61652512,0.00043499,18]
[349161763,1736999447034,-208.22382512,0.00043499,18]
[349161764,1736999447043,-407.09617485,0.00043499,18]
[349161765,1736999447147,-2106.11633853,0.00043499,18]
[349161766,1736999447156,-2169.38476147,0.00043499,18]
[349161767,1736999447167,-235.57523853,0.00043499,18]
[349161768,1736999447176,-2404.96,0.00043499,18]
[349161769,1736999447185,-2404.96,0.00043499,18]
[349161770,1736999447194,-2404.96,0.00043499,18]
[349161771,1736999447203,-2405.19065283,0.00043499,18]
[349161772,1736999447216,-578.95,0.00043499,18]
[349161773,1736999447225,-578.95,0.00043499,18]
[349161774,1736999447234,-814.97,0.00043499,18]
[349161775,1736999447243,-578.95,0.00043499,18]
[349161776,1736999447254,-814.97,0.00043499,18]
[349161777,1736999447263,-273.59818737,0.00043499,18]
[349161778,1736999447275,-305.35181263,0.00043499,18]
[349161779,1736999447284,-98.10824541,0.00043499,18]
[349161780,1736999447295,-301.62258698,0.00043499,18]
[349161781,1736999447306,-415.23916761,0.00043499,18]
[349161782,1736999447315,-305.83721815,0.00043499,18]
[349161783,1736999447334,-273.18474262,0.00043499,18]
[349161784,1736999447343,-814.97,0.00043499,18]
[349161785,1736999447352,-814.97,0.00043499,18]
[349161786,1736999447362,-815.08593403,0.00043499,18]
[349161787,1736999447371,-543.85,0.00043499,18]
[349161788,1736999447380,-543.85,0.00043499,18]
[349161789,1736999447389,-543.85,0.00043499,18]
[349161790,1736999447398,-543.85,0.00043499,18]
[349161791,1736999447408,-543.85,0.00043499,18]
[349161792,1736999447417,-1203.92,0.00043499,18]
[349161793,1736999447426,-396.67906541,0.00043499,18]
[349161794,1736999447438,-147.17350789,0.00043499,18]
[349161795,1736999447447,-339.98545295,0.00043499,18]
[349161796,1736999447458,-863.93454705,0.00043499,18]
[349161797,1736999447468,-1203.92,0.00043499,18]
[349161798,1736999447477,-1203.92,0.00043499,18]
[349161799,1736999447486,-1204.10949726,0.00043499,18]
[349161800,1736999447496,-1100.96,0.00043499,18]
[349161801,1736999447505,-1100.96,0.00043499,18]
[349161802,1736999447516,-1100.96,0.00043499,18]
[349161803,1736999447526,-783.95,0.00043499,18]
[349161804,1736999447535,-1100.96,0.00043499,18]
[349161805,1736999447544,-783.95,0.00043499,18]
[349161806,1736999447554,-1101.02186235,0.00043499,18]
[349161807,1736999447563,-783.95,0.00043499,18]
[349161808,1736999447573,-783.95,0.00043499,18]
[349161809,1736999447583,-784.03505534,0.00043499,18]
[349161810,1736999447592,-923.56,0.00043499,18]
[349161811,1736999447601,-923.56,0.00043499,18]
[349161812,1736999447610,-297.885438,0.00043499,18]
[349161813,1736999447622,-625.674562,0.00043499,18]
[349161814,1736999447631,-171.911438,0.00043499,18]
[349161815,1736999447740,-751.648562,0.00043499,18]
[349161816,1736999447751,-1847.38,0.00043499,18]
[349161817,1736999447762,-396.871538,0.00043499,18]
[349161818,1736999447776,-526.92695936,0.00043499,18]
[349161819,1736999447785,-73.45384721,0.00043499,18]
[349161820,1736999447796,-1773.92615279,0.00043499,18]
[349161821,1736999447806,-1847.38,0.00043499,18]
[349161822,1736999447816,-1847.38,0.00043499,18]
[349161823,1736999447825,-1847.38,0.00043499,18]
[349161824,1736999447834,-1847.57200013,0.00043499,18]
[349161825,1736999447843,-1176.07,0.00043499,18]
[349161826,1736999447854,-1176.07,0.00043499,18]
[349161827,1736999447863,-1176.07,0.00043499,18]
[349161828,1736999447871,-1176.07,0.00043499,18]
[349161829,1736999447883,-1176.26357229,0.00043499,18]
[349161830,1736999447894,-461.72037352,0.00043499,18]
[349161831,1736999447904,-2728.3,0.00043499,18]
[349161832,1736999447914,-2728.3,0.00043499,18]
[349161833,1736999447923,-2728.3,0.00043499,18]
[349161834,1736999447932,-2728.3,0.00043499,18]
[349161835,1736999447941,-2728.35852504,0.00043499,18]
[349161836,1736999447950,-591.68,0.00043499,18]
[349161837,1736999447959,-591.68,0.00043499,18]
[349161838,1736999447969,-591.68,0.00043499,18]
[349161839,1736999447978,-1799.19,0.00043499,18]
[349161840,1736999447987,-591.68,0.00043499,18]
[349161841,1736999447997,-1799.19,0.00043499,18]
[349161842,1736999448007,-591.68,0.00043499,18]
[349161843,1736999448017,-1799.19,0.00043499,18]
[349161844,1736999448026,-591.90389514,0.00043499,18]
[349161845,1736999448035,-1799.19,0.00043499,18]
[349161846,1736999448044,-1799.19,0.00043499,18]
[349161847,1736999448053,-1799.41868661,0.00043499,18]
[349161848,1736999448062,-2487.26,0.00043499,18]
[349161849,1736999448071,-2487.26,0.00043499,18]
[349161850,1736999448080,-1099.3467945,0.00043499,18]
[349161851,1736999448093,-1387.9132055,0.00043499,18]
[349161852,1736999448102,-2487.26,0.00043499,18]
[349161853,1736999448112,-787.31,0.00043499,18]
[349161854,1736999448121,-2380.75157627,0.00043499,18]
[349161858,1737000545277,-2000.0,0.00027671,30]
[349161859,1737000545299,-153.0,0.00027845,2]
[349161860,1737000545322,-2000.0,0.00027945,30]
[349161861,1737000545343,-2000.0,0.00028219,30]
[349161862,1737000545365,-2000.0,0.00028493,30]
[349161863,1737000545387,-300.0,0.00028766,2]
[349161864,1737000545408,-2000.0,0.00028767,30]
[349161865,1737000545430,-2000.0,0.00029041,30]
[349161866,1737000545450,-2000.0,0.00029315,30]
[349161867,1737000545470,-2000.0,0.00029589,30]
[349161868,1737000545492,-957.22,0.00029589,2]
[349161869,1737000545512,-2000.0,0.00029863,30]
[349161870,1737000545532,-151.0,0.0003,120]
[349161871,1737000545555,-2000.0,0.00030137,30]
[349161872,1737000545576,-2000.0,0.00030411,30]
[349161873,1737000545596,-2000.0,0.00030685,30]
[349161874,1737000545616,-2000.0,0.00030959,30]
[349161875,1737000545637,-420.0,0.00031043,2]
[349161876,1737000545658,-2000.0,0.00031233,30]
[349161877,1737000545677,-2000.0,0.00031507,30]
[349161878,1737000545698,-2000.0,0.00031781,30]
[349161879,1737000545718,-2000.0,0.00032055,30]
[349161880,1737000545738,-2000.0,0.00032329,30]
[349161881,1737000545758,-151.0,0.00032411,120]
[349161882,1737000545779,-2000.0,0.00032603,30]
[349161883,1737000545799,-2000.0,0.00032877,30]
[349161884,1737000545820,-2000.0,0.00033151,30]
[349161885,1737000545840,-150.0,0.00033151,2]
[349161886,1737000545862,-2000.0,0.00033425,30]
[349161887,1737000545882,-1430.4079,0.00033699,30]
[349161888,1737000545920,-569.5921,0.00033699,30]
[349161889,1737000545941,-2000.0,0.00033973,30]
[349161890,1737000545961,-2000.0,0.00034247,30]
[349161891,1737000545981,-2000.0,0.00034521,30]
[349161892,1737000546001,-2000.0,0.00034795,30]
[349161893,1737000546021,-151.0,0.00034822,120]
[349161894,1737000546042,-2000.0,0.00035068,30]
[349161895,1737000546063,-2000.0,0.00035342,30]
[349161896,1737000546083,-2000.0,0.00035616,30]
[349161897,1737000546103,-2000.0,0.0003589,30]
[349161898,1737000546123,-2000.0,0.00036164,30]
[349161899,1737000546145,-2000.0,0.00036438,30]
[349161900,1737000546167,-250.0,0.00036608,2]
[349161901,1737000546191,-299.9,0.00036669,2]
[349161902,1737000546211,-2000.0,0.00036712,30]
[349161903,1737000546231,-2000.0,0.00036986,30]
[349161904,1737000546251,-162.83,0.00037167,2]
[349161905,1737000546283,-151.0,0.00037233,120]
[349161906,1737000546307,-2000.0,0.0003726,30]
[349161907,1737000546327,-250.0,0.00037514,2]
[349161908,1737000546350,-2000.0,0.00037534,30]
[349161909,1737000546371,-3019.12,0.00037543,2]
[349161910,1737000546391,-2000.0,0.00037808,30]
[349161911,1737000546412,-1850.84,0.00037883,2]
[349161912,1737000546434,-153.425467,0.00037952,2]
[349161913,1737000546456,-2000.0,0.00038082,30]
[349161914,1737000546477,-150.544,0.0003811,120]
[349161915,1737000546498,-1001.46502215,0.00038355,2]
[349161916,1737000546519,-2000.0,0.00038356,30]
[349161917,1737000546540,-2000.0,0.0003863,30]
[349161918,1737000546566,-2000.0,0.00038904,30]
[349161922,1737000609778,39957.72581085,0.00038,35]
[349161928,1737000632361,-42.27418915,0.00038,35]
[349161929,1737000632372,-2000.0,0.00039178,30]
[349161930,1737000632382,-2000.0,0.00039452,30]
[349161931,1737000632391,-419.12,0.00039496,2]
[349161932,1737000632400,-151.0,0.00039644,120]
[349161933,1737000632410,-162.83,0.00039645,2]
[349161934,1737000632419,-2000.0,0.00039726,30]
[349161935,1737000632428,-4220.8679813,0.000398,120]
[349161936,1737000632438,-2000.0,0.0004,30]
[349161937,1737000632447,-2000.0,0.00040274,30]
[349161938,1737000632456,-2000.0,0.00040548,30]
[349161939,1737000632466,-200.0,0.00040651,2]
[349161940,1737000632475,-2000.0,0.00040822,30]
[349161941,1737000632485,-1223.0,0.00041041,2]
[349161942,1737000632495,-250.0,0.00041045,120]
[349161943,1737000632505,-241.65,0.00041072,2]
[349161944,1737000632515,-249.01,0.00041094,120]
[349161945,1737000632525,-2000.0,0.00041096,30]
[349161946,1737000632534,-156.86,0.00041123,2]
[349161947,1737000632545,-153.425467,0.00041292,30]
[349161948,1737000632554,-150.181,0.0004132,2]
[349161949,1737000632563,-165.45,0.00041414,2]
[349161950,1737000632576,-4102.95853256,0.00041458,2]
[349161951,1737000632590,-722.54233573,0.00041458,2]
[349161952,1737000632602,-466.42930039,0.00041458,2]
[349161953,1737000632619,-3144.47402518,0.00041458,2]
[349161954,1737000632635,-1842.82074556,0.00041458,2]
[349161955,1737000632647,-2721.717,0.00041458,2]
[349161956,1737000632663,-599.69194116,0.00041458,2]
[349161957,1737000632694,-10299.36611942,0.00041458,2]
[349161958,1737000632704,-191.674,0.00041458,61]
[349161959,1737000632714,-1566.61,0.00041458,61]
[349161960,1737000632724,-419.12,0.0004176,2]
[349161961,1737000632733,-1000.0,0.00041776,2]
[349161962,1737000632743,-178.21,0.00041831,2]
[349161963,1737000632754,-178.21,0.00041883,2]
[349161964,1737000632764,-1519.09270324,0.00041916,8]
[349161965,1737000632776,-178.21,0.00041936,2]
[349161966,1737000632785,-178.21,0.00041988,2]
[349161967,1737000632795,-4086.0,0.00042016,117]
[349161968,1737000632806,-178.21,0.0004204,2]